Workbook

Sheet START
B1: OVER DEZE SJABLOON
B2: Volg de initiële investering in de website en de voordelen en kosten ervan met behulp van dit websitebudget.
B3: Vul de bedrijfsnaam en datum in.
B4: Voer gegevens in tabellen in om automatisch totalen en evaluatiemetrieken te berekenen.
B5: Opmerking:
B6: Kolom A van het werkblad BUDGET bevat aanvullende instructies. Deze tekst is opzettelijk verborgen. Als u tekst wilt verwijderen, selecteert u kolom A en drukt u op Delete. Als u de tekst zichtbaar wilt maken, selecteert u kolom A en wijzigt u de tekenkleur.
B7: Als u meer wilt weten over tabellen in het werkblad, drukt u in een tabel op Shift en F10 en selecteert u de optie Tabel en vervolgens Alternatieve tekst.

Sheet BUDGET
A1: Maak een websitebudget in dit werkblad. Cellen in deze kolom bevatten handige instructies voor het gebruik van dit werkblad. Druk op de pijl-omlaag om aan de slag te gaan.
A2: Voer in de cel rechts de naam van het Bedrijfsnaam in. | B2: Bedrijfsnaam
A3: De titel van dit werkblad staat in de cel rechts. | B3: Websitebudget
A4: Voer in de cel rechts de datum in. | B4: Datum
A5: De tip staat in de cel rechts. | B5: Grijze cellen bevatten berekeningen die niet mogen worden gewijzigd.
A6: Voer de bedrijfsgegevens in in de tabel Percentage die begint in de cel rechts. De volgende aanwijzing staat in cel A10. | B6: Bedrijfsgegevens | C6: Percentage
B7: Vereiste rentabiliteit | C7: 10%
B8: Belastingtarief | C8: 30%
A10: Voer de gegevens in in de tabel AanvankInvest die begint in de cel rechts. De volgende aanwijzing staat in cel A16. | B10: Aanvankelijke investering in website | C10: JAAR | D10: 1 | E10: 2 | F10: 3
B11: Hardware (bijvoorbeeld servers) | C11: € 25,000.00
B12: Software (zoals e-commerce-catalogussoftware) | C12: € 15,000.00
B13: Ontwikkeling (bijvoorbeeld ontwerp en ontwikkeling van de site door derden) | C13: € 150,000.00
B14: Totale aanvankelijke investeringen | C14: =SUBTOTAL(109,AanvankInvest[JAAR]) -> € 190,000.00
A16: Voer de gegevens in in de tabel Voordelen die begint in de cel rechts. De volgende aanwijzing staat in cel A24. | B16: Voordelen van website | C16: JAAR | D16: 1 | E16: 2 | F16: 3
B17: Directe verkoop | D17: € 15,000.00 | E17: € 50,000.00 | F17: € 75,000.00
B18: Extra verkoop dankzij verbeterde effectiviteit van reclame/verkopers | D18: € 25,000.00 | E18: € 25,000.00 | F18: € 25,000.00
B19: Extra verkoop dankzij grotere deelname van partners | D19: € 25,000.00 | E19: € 25,000.00 | F19: € 25,000.00
B20: Gereduceerde reiskosten | D20: € 25,000.00 | E20: € 25,000.00 | F20: € 25,000.00
B21: Gereduceerde kosten voor klantenservice | D21: € 50,000.00 | E21: € 50,000.00 | F21: € 50,000.00
B22: Totale voordelen | D22: =SUBTOTAL(109,Voordelen[1]) -> € 140,000.00 | E22: =SUBTOTAL(109,Voordelen[2]) -> € 175,000.00 | F22: =SUBTOTAL(109,Voordelen[3]) -> € 200,000.00
A24: Voer de gegevens in in de tabel Kosten die begint in de cel rechts. Waarden worden automatisch berekend in cellen met formules. De volgende aanwijzing staat in cel A32. | B24: Kosten (exclusief aanvankelijke kapitaalinvesteringen) | C24: JAAR | D24: 1 | E24: 2 | F24: 3
B25: Verkoopkosten | D25: € 7,500.00 | E25: € 25,000.00 | F25: € 37,500.00
B26: Onderhoud | D26: € 15,000.00 | E26: € 15,000.00 | F26: € 15,000.00
B27: Projectmanagement, klantondersteuning | D27: € 35,000.00 | E27: € 35,000.00 | F27: € 35,000.00
B28: Online reclame, registratie bij zoekmachines | D28: € 10,000.00 | E28: € 10,000.00 | F28: € 10,000.00
B29: Afschrijvingen op bedrijfsinvesteringen (berekening gebruikt periode van drie jaar) | D29: =AanvankInvest[[#Totals],[JAAR]]/3 -> € 63,333.33 | E29: =AanvankInvest[[#Totals],[JAAR]]/3 -> € 63,333.33 | F29: =AanvankInvest[[#Totals],[JAAR]]/3 -> € 63,333.33
B30: Totale kosten | D30: =SUBTOTAL(109,Kosten[1]) -> € 130,833.33 | E30: =SUBTOTAL(109,Kosten[2]) -> € 148,333.33 | F30: =SUBTOTAL(109,Kosten[3]) -> € 160,833.33
A32: Waarden worden automatisch berekend in de tabel Totalen die in de cel rechts begint. De volgende aanwijzing staat in cel A40. | B32: Totalen | C32: JAAR | D32: 1 | E32: 2 | F32: 3
B33: Netto voordelen (kosten) | D33: =Voordelen[[#Totals],[1]]-Kosten[[#Totals],[1]] -> € 9,166.67 | E33: =Voordelen[[#Totals],[2]]-Kosten[[#Totals],[2]] -> € 26,666.67 | F33: =Voordelen[[#Totals],[3]]-Kosten[[#Totals],[3]] -> € 39,166.67
B34: Belasting | D34: =D33*Belastingtarief -> € 2,750.00 | E34: =E33*Belastingtarief -> € 8,000.00 | F34: =F33*Belastingtarief -> € 11,750.00
B35: Winst na belastingen | D35: =D33-D34 -> € 6,416.67 | E35: € 18,666.67 | F35: € 27,416.67
B36: Afschrijving weer toegevoegd | D36: =D29 -> € 63,333.33 | E36: =E29 -> € 63,333.33 | F36: =F29 -> € 63,333.33
B37: Cashflow | C37: =-AanvankInvest[[#Totals],[JAAR]] -> € -190,000.00 | D37: =D35+D36 -> € 69,750.00 | E37: € 82,000.00 | F37: € 90,750.00
B38: Cumulatieve cashflow | C38: =C37 -> € -190,000.00 | D38: =C38+D37 -> € -120,250.00 | E38: € -38,250.00 | F38: € 52,500.00
A40: Evaluatiemetrieken worden automatisch berekend in de tabel Metrieken die in de cel rechts begint. | B40: Evaluatiemetrieken | C40: Waarden
B41: Netto huidige waarde (NHW) | C41: =C37+(NPV(Rentabiliteit,D37:F37)) -> € 9,359.50
B42: Interne rentabiliteit (IR) | C42: =IRR(C37:F37) -> 12.66%
B43: Terugverdientijd (in jaren) | C43: =IF(F38<=0,"Meer dan drie jaar",IF(E38<=0,(F37-F38)/F37+2,IF(D38<=0,(E37-E38)/E37+1,IF(C38<=0,(D37-D38)/D37,"NB")))) -> 2.42
